Cogmind - Beta 13 @@@ ROGUE MODE // 2024.04.09 @ 06:26:37 Player: TurnLeft25 Result: Self-destructed Performance ------------- Evolutions (1) 500 Regions Visited (2) 400 Robots Destroyed (31) 155 Value Destroyed (636) 636 Prototype IDs (1) 20 Alien Tech Used (0) 0 Bonus (0) 0 TOTAL SCORE: 1711 Bonus ------- None Cogmind --------- Core Integrity 224/400 Matter 6/300 Energy 265/265 System Corruption 0% Temperature Cool (0) Movement Treading (240) Ox1 Location -9/Materials Parts ------- > --- POWER (1) -------- Improved Ion Engine > --- PROPULSION (2) --- Light Treads > --- UTILITY (4) ------ Large Storage Unit Signal Interpreter Targeting Computer Core Shielding > --- WEAPON (2) ------- Mini Grenade Launcher > --- INVENTORY (15) --- Light Treads Heat Sink Grenade Launcher Mini Grenade Launcher Peak State ------------ > --- POWER ------------ Heavy Ion Engine > --- PROPULSION ------- Light Treads > --- UTILITY ---------- Small Storage Unit Targeting Computer > --- WEAPON ----------- Assault Rifle Mini Grenade Launcher > --- INVENTORY -------- Light Ion Engine Signal Interpreter Core Shielding Grenade Launcher Grenade Launcher Mini Grenade Launcher Mini Grenade Launcher Mini Grenade Launcher [Rating: 10] Favorites ----------- Power Light Ion Engine Engine Light Ion Engine Propulsion Light Treads Treads Light Treads Hover Unit Hover Unit Utility Small Storage Unit Device Sensor Array Storage Small Storage Unit Processor Targeting Computer Protection Core Shielding Weapon Mini Grenade Launcher Energy Gun EM Pulse Gun Ballistic Gun Assault Rifle Launcher Mini Grenade Launcher Build | -11 -10 -9 ------- Run | Yrd Mat Mat Slots Evolved 2 | . . 2 Power . | . . . Propulsion . | . . . Utility 2 | . . 2 Weapon . | . . . Parts Attached 25 | 6 10 9 Power 6 | 1 3 2 Engine 6 | 1 3 2 Core . | . . . Reactor . | . . . Propulsion 4 | 2 . 2 Treads 3 | 2 . 1 Leg . | . . . Wheel . | . . . Hover 1 | . . 1 Flight . | . . . Utility 8 | 1 4 3 Device 2 | . 1 1 Storage 3 | 1 2 . Processor 2 | . 1 1 Hackware . | . . . Protection 1 | . . 1 Artifact . | . . . Weapon 7 | 2 3 2 Energy Gun 1 | 1 . . Energy Cannon . | . . . Ballistic Gun 2 | 1 1 . Ballistic Cannon . | . . . Launcher 4 | . 2 2 Special Weapon . | . . . Impact Weapon . | . . . Slashing Weapon . | . . . Piercing Weapon . | . . . Special Melee Weapon . | . . . Unidentified Prototypes 1 | . 1 . Parts Lost 12 | . 4 8 Power 3 | . 1 2 Propulsion 3 | . 1 2 Utility 3 | . 2 1 Weapon 3 | . . 3 Highest Loss Streak 8 | . 4 8 To Critical Strikes . | . . . Average Slot Usage (%) 76 | . 79 70 Engine 10 | . 11 6 Treads 16 | . 18 7 Device 2 | . 1 4 Storage 12 | . 12 11 Processor 9 | . 5 22 Ballistic Gun 11 | . 13 5 Launcher 12 | . 12 11 Naked Turns . | . . . Heaviest Build 29 | 12 26 29 Greatest Support 40 | 40 40 20 Greatest Overweight (x) 7 | . 1 7 Average Overweight (x) . | . . 2 Largest Inventory Capacity 15 | 8 15 15 Average Capacity 9 | 6 8 15 Most Carried 8 | 5 8 7 Average Carried 5 | 2 6 4 Final Capacity 15 | 8 15 15 Final Carried 8 | 1 8 4 Class Distribution -------------------- 100% | Mutant Dominant Class ---------------- Mutant | -10/Materials Mutant | -9/Materials Resources | -11 -10 -9 ----------- Run | Yrd Mat Mat Matter Collected 511 | 176 222 113 Remotely . | . . . Salvage Created 620 | . 326 294 Parts 53 | . 23 30 Haulers Intercepted . | . . . Recyclers Shooed . | . . . Parts Field Recycled . | . . . Retrieved Matter . | . . . Parts Self-Destructed . | . . . Prevented . | . . . Kills | -11 -10 -9 ------- Run | Yrd Mat Mat Combat Hostiles Destroyed 19 | . 10 9 Guns 3 | . 1 2 AOE 16 | . 9 7 Classes Destroyed 7 | . 5 2 Worker 4 | . 3 1 Builder 2 | . . 2 Recycler 3 | . 2 1 Watcher 3 | . 2 1 Swarmer 7 | . 3 4 Grunt 10 | . 7 3 Sentry 2 | . . 2 Best Kill Streak 13 | . 6 13 Combat Bots Only 5 | . 4 5 Max Kills in Single Turn 2 | . 2 2 Gunslinging . | . . . Exploded 2 | . 2 2 Melee . | . . . Uniques/NPCs Destroyed . | . . . Combat | -11 -10 -9 -------- Run | Yrd Mat Mat Hostile Shots Fired 89 | . 43 46 Missed 29 | . 20 9 Damage Taken 1439 | . 840 599 Core 370 | . 194 176 Absorbed by Shields . | . . . Redirected to Shielding 6 | . . 6 Regen/Repaired (Parts) 41 | . 41 . Core Remaining (%) 61 | 100 22 . Volleys Fired 38 | . 22 16 Largest 2 | . 2 2 Hottest 60 | . 60 60 Shots Fired 63 | . 41 22 Gun 31 | . 23 8 Cannon . | . . . Launcher 32 | . 18 14 Special . | . . . Kinetic 30 | . 22 8 Thermal . | . . . Explosive 32 | . 18 14 Electromagnetic 1 | . 1 . Robot Hit Streak 12 | . 6 12 Robot Miss Streak 2 | . 2 1 Penetration Max . | . . . Secondary Targets . | . . . Shots Hit Robots 44 | . 26 18 Core Hits 44 | . 24 20 Critical Kills . | . . . Critical Parts Destroyed . | . . . Critical Strikes . | . . . Melee Attacks . | . . . Impact . | . . . Slashing . | . . . Piercing . | . . . Sneak Attacks . | . . . Combat Hostiles . | . . . Follow-up Attacks . | . . . Damage Inflicted 2186 | . 1262 924 Guns 261 | . 175 86 Cannons . | . . . Explosions 1923 | . 1086 837 Melee . | . . . Ramming 2 | . 1 1 Kinetic 261 | . 175 86 Thermal . | . . . Explosive 1923 | . 1086 837 Electromagnetic . | . . . Impact . | . . . Slashing . | . . . Piercing . | . . . Highest Corruption 16 | . 16 . Average Corruption 14 | . 14 . Corruption Purged . | . . . Corruption Blocked . | . . . Effects 15 | . 15 . Message Errors 1 | . 1 . Matter Fused 2 | . 2 . Heat Flow Errors 3 | . 3 . Energy Discharges 3 | . 3 . Data Loss (minor) 2 | . 2 . Data Loss (major) 2 | . 2 . Alerts 2 | . 2 . Overload Shots . | . . . Overflow Damage 71 | . 42 29 Projectiles . | . . . Explosions 71 | . 42 29 Melee . | . . . Knockbacks . | . . . Impact . | . . . Kinetic . | . . . Secondary . | . . . Self-Inflicted Damage 267 | . 123 144 Shots 12 | . 5 7 Rammed 2 | . 1 1 Targets Rammed 2 | . 1 1 Kicked . | . . . Crushed . | . . . Highest Temperature 247 | . 247 15 Average Temperature 91 | . 99 6 Received Heat Transfer 273 | . 96 177 Siege Activations . | . . . Robots Corrupted . | . . . Combat Hostiles . | . . . Parts Fried . | . . . Impact Corruptions . | . . . Robots Melted . | . . . Combat Hostiles . | . . . Parts Melted . | . . . Heat Transferred . | . . . Parts Sabotaged . | . . . Parts Stolen . | . . . Parts Stripped . | . . . Power Chain Reactions . | . . . Alert | -11 -10 -9 ------- Run | Yrd Mat Mat Peak Influence 370 | . 364 370 Initial 78 | . . 78 Average 188 | . 189 226 Maximum Alert Level 1 | . 1 1 Low Security (%) 61 | 100 66 40 Level 1 38 | . 33 59 Level 2 . | . . . Level 3 . | . . . Level 4 . | . . . Level 5 . | . . . High Security . | . . . Max Security . | . . . Squads Dispatched 2 | . 1 1 Investigation . | . . . Extermination . | . . . Reinforcement 2 | . 1 1 Assault . | . . . Garrison . | . . . Intercept . | . . . Searches Triggered . | . . . Construction Impeded . | . . . Haulers Reinforced . | . . . Active Scanning Responses . | . . . Cargo Convoy Interrupts . | . . . Stealth | -11 -10 -9 --------- Run | Yrd Mat Mat Distress Signals 4 | . 1 3 Communications Jammed . | . . . Distress Signals . | . . . Times Spotted 28 | . 13 15 Peak Tracking Total 6 | . 3 6 Tactical Retreats . | . . . Traps | -11 -10 -9 ------- Run | Yrd Mat Mat Traps Triggered . | . . . Indirectly . | . . . Trap Hack Attempts . | . . . Triggered . | . . . Disarmed . | . . . Reprogrammed . | . . . Reused . | . . . Traps Extracted . | . . . Installed . | . . . Triggered . | . . . Machines | -11 -10 -9 ---------- Run | Yrd Mat Mat Machines Disabled 3 | . . 3 Max in Single Turn 1 | . . 1 Machines Repaired . | . . . Machines Dismantled . | . . . Machines Sabotaged . | . . . Overloaded Fab Kills . | . . . Hacking | -11 -10 -9 --------- Run | Yrd Mat Mat Machines Accessed 1 | . 1 . Terminals . | . . . Fabricators . | . . . Repair Stations 1 | . 1 . Recycling Units . | . . . Scanalyzers . | . . . Garrison Access . | . . . Total Hacks 3 | . 3 . Successful 2 | . 2 . Failed 1 | . 1 . Catastrophic . | . . . Database Lockouts . | . . . Manual . | . . . Terminals . | . . . Fabricators . | . . . Repair Stations 3 | . 3 . Recycling Units . | . . . Scanalyzers . | . . . Garrison Access . | . . . Terminal Hacks . | . . . Fabricator Hacks . | . . . Repair Station Hacks 2 | . 2 . Scan Component 1 | . 1 . Repair 1 | . 1 . Recycling Unit Hacks . | . . . Scanalyzer . | . . . Garrison Access Hacks . | . . . Unauthorized Hacks . | . . . Terminals . | . . . Fabricators . | . . . Repair Stations . | . . . Recycling Units . | . . . Scanalyzers . | . . . Garrison Access . | . . . Data Cores Recovered . | . . . Used . | . . . Hacking Detections 1 | . 1 . Full Trace Events . | . . . Feedback Events . | . . . Feedback Blocked . | . . . Robot Schematics Acquired . | . . . Robots Built . | . . . Authchips . | . . . Time . | . . . Total Robot Build Rating . | . . . Part Schematics Acquired . | . . . Parts Built . | . . . Authchips . | . . . Time . | . . . Total Part Build Rating . | . . . Parts Repaired 1 | . 1 . Time 26 | . 26 . Parts Recycled . | . . . Recycled Matter . | . . . Retrieved Matter . | . . . Retrieved Components . | . . . Parts Scanalyzed . | . . . Part Schematics Acquired . | . . . Parts Damaged . | . . . Bothacking | -11 -10 -9 ------------ Run | Yrd Mat Mat Used RIF Installer . | . . . Robots Hacked . | . . . Non-combat . | . . . Combat . | . . . Robot Hacks Applied . | . . . Relay Couplers Released . | . . . Fabnet Peak Effective % . | . . . Robots Rewired . | . . . Allies Hacked . | . . . Hacks Repelled . | . . . Allies | -11 -10 -9 -------- Run | Yrd Mat Mat Total Allies . | . . . Largest Group . | . . . Highest-Rated Group . | . . . Highest-Rated Ally . | . . . Total Orders . | . . . Ally Attacks . | . . . Total Damage . | . . . Kills . | . . . Allies Corrupted . | . . . Allies Melted . | . . . Intel | -11 -10 -9 ------- Run | Yrd Mat Mat Robot Analysis Total . | . . . Derelict Logs Recovered . | . . . Drone Launches . | . . . Drone Recoveries . | . . . Exploration | -11 -10 -9 ------------- Run | Yrd Mat Mat Turns Passed 879 | 43 630 206 Spaces Moved 401 | 31 313 57 Core 28 | 16 . 12 Treads 373 | 15 313 45 Legs . | . . . Wheels . | . . . Hover . | . . . Flight . | . . . Fastest Speed 50 | 50 160 240 Average Speed 173 | 103 164 265 Slowest Speed 400 | 160 240 400 Overloaded Moves . | . . . Propulsion Burnouts . | . . . Robots Hopped . | . . . Cave-ins Triggered 2 | . 2 . Exploration Rate (%) 18 | 3 39 13 Regions Visited 2 Branch Regions . Pre-discovered Areas . | . . . Known Exits Taken . | . . . Unknown Exits Taken 2 | 1 1 . Scrap Searched . | . . . Spaces Dug . | . . . Terrain Destroyed 221 | . 142 79 Melee . | . . . Projectile . | . . . AOE 221 | . 142 79 Terrain Rammed . | . . . Walls Destroyed . | . . . Machines Disabled . | . . . Actions | -11 -10 -9 --------- Run | Yrd Mat Mat Total 518 | 41 389 88 Wait 26 | . 26 . Move 399 | 30 312 57 Hop . | . . . Pick Up 23 | 5 13 5 Fast Attach 5 | 2 3 . Attach 17 | 4 4 9 Detach . | . . . Swap 3 | . 3 . Drop 5 | . 5 . Fire 38 | . 22 16 Melee . | . . . Ram . | . . . Kick . | . . . Crush 2 | . 1 1 Escape Stasis . | . . . Rewire . | . . . Trap . | . . . Miscellaneous . | . . . Route ------- -11/Scrapyard -10/Materials -9/Materials History --------- Turn | Location | Event 2 | -11/Scrapyard | Met Revision 17 6 | -11/Scrapyard | Discovered new exit (range 16) 44 | -11/Scrapyard | Entered Materials 155 | -10/Materials | Repaired Assault Rifle 268 | -10/Materials | Crushed by falling debris 268 | -10/Materials | Core integrity fell below 50% 268 | -10/Materials | System corruption reached 10% 275 | -10/Materials | Crushed by falling debris 299 | -10/Materials | Lost 4 parts (1p1n2u) 304 | -10/Materials | Build established: Mutant 614 | -10/Materials | Discovered new exit (range 9) 674 | -10/Materials | Entered another Materials area 674 | -9/Materials | Evolved 2 slots: Utility x2 833 | -9/Materials | Lost 8 parts (2p2n1u3w) 880 | -9/Materials | Self-destructed Last Messages --------------- 00851_ K-01 Serf collects debris. 00851_ U-05 Engineer builds a Door. 00851_ U-05 Engineer builds a Wall. 00854_ K-01 Serf collects debris. 00855_ U-05 Engineer lays Concrete. 00857_ The unstable cave ceiling collapses. 00857_ U-05 Engineer lays Concrete. 00858_ U-05 Engineer builds a Wall. 00862_ U-05 Engineer lays Concrete. 00865_ U-05 Engineer builds a Wall. 00868_ G-34 Mercenary destroyed. 00869_ U-05 Engineer lays Concrete. 00870_ Slammed into U-05 Engineer. 00872_ U-05 Engineer lays Concrete. 00875_ U-05 Engineer builds a Wall. 00875_ U-05 Engineer lays Concrete. 00876_ U-05 Engineer builds a Wall. 00876_ U-05 Engineer lays Concrete. 00879_ Acquired Lgt. Treads. 00880_ U-05 Engineer lays Concrete. Map ----- +----------------------------------------------------+ | ?????????????????????????????????????????????????? | | ?????????????????????????????????????????????????? | | ?????????????????????????????????????????????????? | | ?????????????????????????????????????????????????? | | ?????????????????????????????????????????????????? | | ??????????????????????????######################## | | ????????????????????????? | | ??????????????????????????? | | ?????????????????????????????? """" | | ?????????????????????????? " """" #######+ | | ??????????????????????????Y" """" #???? | | ??????????????????????? ?""" #??? "" | | ?????????????????????? #??# "" | | ?????????????????????? #??# "" | | ?????????????????????###+############## #??# | | ?????????????????????# ???????# #??# | | ?????????????????????# ???????# #??##### | | ?????????????????????? #?###### #??????? | | ??????????????????????? ### # ## ######## | | ????????????????????????# ###+######### # # | | ???????????????????????## # # """ ? | | ???????????????????????# u # # """?? | | ???????????????????????# r + # """ ? | | ???????????????????????## /!! # # """ ? | | ??????????????????????## !! # # # | | ??????????????????????# @ !! g ###+#### | | ??????????????????????# # #### %= # | | ?????????????????????## ! = ## | | ?????????????????????# # ## | | ?????????????????????# #!= | | ?????????????????????# # u# ##!= | | ?????????????????????###u #=Y #= | | ??????????????????????## # * ## | | ??????????????????????#####+### #+ #? !!! | | ????????????????????? !!! | | ??????????????????? !! ?? | | ??????????????????? ???? | | ????????????????????##############+### ??????? | | ?????????????????????????????????? ???# ??????? | | ?????????????????????????????????? ???? #?????? | | ?????????????????????????????????? ????? #?????? | | ???????????????????????????????????????? #?????? | | ????????????????????????????????????????? ??????? | | ?????????????????????????????????????????????????? | | ?????????????????????????????????????????????????? | | ?????????????????????????????????????????????????? | | ?????????????????????????????????????????????????? | | ?????????????????????????????????????????????????? | | ?????????????????????????????????????????????????? | | ?????????????????????????????????????????????????? | +----------------------------------------------------+ Best States ------------- Heat Dissipation 35 Energy Generation 12 Energy Capacity 265 Matter Stores 230 Matter Capacity 300 Sight Range 16 Robot Scan Range 14 Terrain Scan Density 10 Core Shielding 20 Evasion (%) 50 Targeting Accuracy 5 Recoil Reduction 2 Item Schematics ----------------- None Robot Schematics ------------------ None Fabricated ------------ Nothing Alien Tech Used ----------------- None Achievements -------------- None Challenges ------------ None Game ------ Seed NeutronTractorMatrix Manual? 0 Play Time 00:08:27 Cumulative 12.5 hours Start 2024.04.09 @ 06:20:18 End 2024.04.09 @ 06:26:37 Sessions 1 Manual Loads 0 Difficulty Rogue Special Mode None Game No. 24 Rogue 24 Adventurer 0 Explorer 0 Win Type - Total 0 Types 0/0/0/0/0/0/0/0/0 Lore% 17 Gallery% 22 Achievement% 19 Wizard Run 0 Options --------- Layout 1 ASCII 0 Keyboard 0 Movement Mouse Keybinds 0 Fullscreen 1 Font 24/Smallcaps Map View 50x40 Zoom Use 0% Tactical HUD 1 Map Filters NONE Filters NONE Steam 1 RUN: f9463b14-c01a-405e-b514-da8aef80320b